[Event "Titled Tuesday Blitz June 14 Late 2022"]
[White "Mikhailov, Viacheslav"]
[Black "Beulen, Marcel"]
[WhiteFideId "4187369"]
[BlackFideId "1001450"]
[WhiteElo "2381"]
[BlackElo "2378"]
[Result "1-0"]
[Round "03"]
[TimeControl "180+1"]
[Date "2022.06.14"]
[WhiteClock "0:00:26"]
[BlackClock "0:00:04"]

1. Nf3 {[%clk 0:02:59]}  d5 {[%clk 0:02:59]} 2. g3 {[%clk 0:02:59]}  Nf6 {[%clk 0:02:59]} 3. Bg2 {[%clk 0:03:00]}  c6 {[%clk 0:02:59]} 4. O-O {[%clk 0:03:00]}  Bg4 {[%clk 0:02:59]} 5. c4 {[%clk 0:03:01]}  e6 {[%clk 0:02:58]} 6. d4 {[%clk 0:03:00]}  Nbd7 {[%clk 0:02:57]} 7. Nc3 {[%clk 0:03:00]}  Bd6 {[%clk 0:02:51]} 8. Qb3 {[%clk 0:03:00]}  Rb8 {[%clk 0:02:41]} 9. h3 {[%clk 0:03:00]}  Bxf3 {[%clk 0:02:36]} 10. Bxf3 {[%clk 0:03:01]}  O-O {[%clk 0:02:36]} 11. Rd1 {[%clk 0:03:01]}  Re8 {[%clk 0:02:33]} 12. e4 {[%clk 0:02:58]}  dxe4 {[%clk 0:02:32]} 13. Nxe4 {[%clk 0:02:58]}  Nxe4 {[%clk 0:02:32]} 14. Bxe4 {[%clk 0:02:59]}  Qf6 {[%clk 0:02:12]} 15. h4 {[%clk 0:02:54]}  h6 {[%clk 0:02:10]} 16. Bc2 {[%clk 0:02:50]}  a6 {[%clk 0:02:09]} 17. Be3 {[%clk 0:02:47]}  b5 {[%clk 0:01:43]} 18. c5 {[%clk 0:02:41]}  Bc7 {[%clk 0:01:41]} 19. Qd3 {[%clk 0:02:33]}  Nf8 {[%clk 0:01:27]} 20. Qe4 {[%clk 0:02:30]}  e5 {[%clk 0:01:26]} 21. d5 {[%clk 0:02:30]}  cxd5 {[%clk 0:01:25]} 22. Rxd5 {[%clk 0:02:31]}  Rbd8 {[%clk 0:01:09]} 23. Rad1 {[%clk 0:02:31]}  Rxd5 {[%clk 0:01:10]} 24. Rxd5 {[%clk 0:02:32]}  Rd8 {[%clk 0:01:10]} 25. b4 {[%clk 0:02:30]}  a5 {[%clk 0:01:06]} 26. a3 {[%clk 0:02:29]}  axb4 {[%clk 0:01:06]} 27. axb4 {[%clk 0:02:30]}  Ne6 {[%clk 0:00:57]} 28. Qh7+ {[%clk 0:02:17]}  Kf8 {[%clk 0:00:57]} 29. Be4 {[%clk 0:02:12]}  Nd4 {[%clk 0:00:49]} 30. Kg2 {[%clk 0:01:58]}  Rxd5 {[%clk 0:00:47]} 31. Bxd5 {[%clk 0:01:59]}  Ke7 {[%clk 0:00:47]} 32. Qg8 {[%clk 0:01:54]}  Nc2 {[%clk 0:00:37]} 33. Bd2 {[%clk 0:01:50]}  e4 {[%clk 0:00:33]} 34. Qc8 {[%clk 0:01:41]}  Qf3+ {[%clk 0:00:27]} 35. Kg1 {[%clk 0:01:38]}  Bxg3 {[%clk 0:00:15]} 36. Qb7+ {[%clk 0:01:33]}  Kf8 {[%clk 0:00:13]} 37. Qa8+ {[%clk 0:00:34]}  Ke7 {[%clk 0:00:13]} 38. Qa7+ {[%clk 0:00:34]}  Kf8 {[%clk 0:00:13]} 39. c6 {[%clk 0:00:33]}  e3 {[%clk 0:00:04]} 40. Bxf3 {[%clk 0:00:26]} 1-0


[Site "https://www.chess.com"]

[Event "Titled Tuesday Blitz June 14 Late 2022"]
[White "OKEKE, Isaac Chukwudalu"]
[Black "Wartiovaara, Oliver"]
[WhiteFideId "8508526"]
[BlackFideId "513024"]
[WhiteElo "2102"]
[BlackElo "1971"]
[Result "1-0"]
[Round "03"]
[TimeControl "180+1"]
[Date "2022.06.15"]
[WhiteClock "0:00:12"]
[BlackClock "0:00:01"]

1. e4 {[%clk 0:02:59]}  c5 {[%clk 0:02:55]} 2. Nf3 {[%clk 0:02:59]}  d6 {[%clk 0:02:54]} 3. d4 {[%clk 0:02:59]}  cxd4 {[%clk 0:02:53]} 4. Nxd4 {[%clk 0:02:59]}  Nf6 {[%clk 0:02:53]} 5. Nc3 {[%clk 0:03:00]}  a6 {[%clk 0:02:52]} 6. Bg5 {[%clk 0:03:00]}  e6 {[%clk 0:02:52]} 7. Qf3 {[%clk 0:03:00]}  Be7 {[%clk 0:02:48]} 8. O-O-O {[%clk 0:02:59]}  Qc7 {[%clk 0:02:42]} 9. g4 {[%clk 0:02:55]}  Nbd7 {[%clk 0:02:40]} 10. Qg3 {[%clk 0:02:50]}  h6 {[%clk 0:02:32]} 11. Be3 {[%clk 0:02:37]}  b5 {[%clk 0:02:24]} 12. a3 {[%clk 0:02:32]}  Rb8 {[%clk 0:02:15]} 13. f4 {[%clk 0:02:27]}  b4 {[%clk 0:02:09]} 14. axb4 {[%clk 0:02:26]}  Rxb4 {[%clk 0:02:10]} 15. Be2 {[%clk 0:02:07]}  Bb7 {[%clk 0:01:36]} 16. Bf3 {[%clk 0:02:06]}  Nc5 {[%clk 0:01:27]} 17. Qg2 {[%clk 0:01:58]}  Qa5 {[%clk 0:01:11]} 18. Kb1 {[%clk 0:01:02]}  d5 {[%clk 0:00:41]} 19. exd5 {[%clk 0:00:50]}  exd5 {[%clk 0:00:31]} 20. Nf5 {[%clk 0:00:45]}  Nce4 {[%clk 0:00:25]} 21. Nxe4 {[%clk 0:00:35]}  dxe4 {[%clk 0:00:19]} 22. Be2 {[%clk 0:00:33]}  Ra4 {[%clk 0:00:19]} 23. c3 {[%clk 0:00:24]}  Ra1+ {[%clk 0:00:20]} 24. Kc2 {[%clk 0:00:24]}  Qa4+ {[%clk 0:00:13]} 25. Kd2 {[%clk 0:00:24]}  Rxd1+ {[%clk 0:00:12]} 26. Bxd1 {[%clk 0:00:20]}  Qb5 {[%clk 0:00:11]} 27. Kc1 {[%clk 0:00:19]}  Kf8 {[%clk 0:00:08]} 28. Nxe7 {[%clk 0:00:19]}  Kxe7 {[%clk 0:00:09]} 29. g5 {[%clk 0:00:18]}  hxg5 {[%clk 0:00:07]} 30. fxg5 {[%clk 0:00:19]}  Nd7 {[%clk 0:00:07]} 31. Qf2 {[%clk 0:00:17]}  Ne5 {[%clk 0:00:06]} 32. Bc2 {[%clk 0:00:12]}  Nd3+ {[%clk 0:00:04]} 33. Bxd3 {[%clk 0:00:12]}  exd3 {[%clk 0:00:05]} 34. Re1 {[%clk 0:00:12]}  Kf8 {[%clk 0:00:04]} 35. Bc5+ {[%clk 0:00:12]}  Kg8 {[%clk 0:00:04]} 36. g6 {[%clk 0:00:12]}  fxg6 {[%clk 0:00:03]} 37. Re7 {[%clk 0:00:09]}  Bd5 {[%clk 0:00:02]} 38. Re5 {[%clk 0:00:04]}  Rh5 {[%clk 0:00:03]} 39. Qf8+ {[%clk 0:00:03]}  Kh7 {[%clk 0:00:03]} 40. Rxh5+ {[%clk 0:00:03]}  gxh5 {[%clk 0:00:04]} 41. Bd4 {[%clk 0:00:04]}  Qd7 {[%clk 0:00:03]} 42. Qf4 {[%clk 0:00:03]}  Be6 {[%clk 0:00:02]} 43. Kd2 {[%clk 0:00:03]}  Bg4 {[%clk 0:00:03]} 44. Qe4+ {[%clk 0:00:03]}  Qf5 {[%clk 0:00:04]} 45. Qe3 {[%clk 0:00:04]}  Qf3 {[%clk 0:00:03]} 46. Qxf3 {[%clk 0:00:05]}  Bxf3 {[%clk 0:00:04]} 47. Kxd3 {[%clk 0:00:05]}  Bg4 {[%clk 0:00:04]} 48. c4 {[%clk 0:00:06]}  Bc8 {[%clk 0:00:04]} 49. Kc3 {[%clk 0:00:07]}  g5 {[%clk 0:00:05]} 50. Kb4 {[%clk 0:00:08]}  g4 {[%clk 0:00:06]} 51. Kc5 {[%clk 0:00:09]}  Kg6 {[%clk 0:00:07]} 52. Kb6 {[%clk 0:00:09]}  Kf5 {[%clk 0:00:07]} 53. Bf2 {[%clk 0:00:10]}  Ke4 {[%clk 0:00:07]} 54. c5 {[%clk 0:00:11]}  Kf3 {[%clk 0:00:07]} 55. Bg3 {[%clk 0:00:11]}  Kg2 {[%clk 0:00:07]} 56. Kc7 {[%clk 0:00:11]}  Be6 {[%clk 0:00:07]} 57. c6 {[%clk 0:00:12]}  h4 {[%clk 0:00:07]} 58. Bxh4 {[%clk 0:00:10]}  Kxh2 {[%clk 0:00:08]} 59. Kd6 {[%clk 0:00:11]}  Bf5 {[%clk 0:00:08]} 60. Bf6 {[%clk 0:00:11]}  g3 {[%clk 0:00:06]} 61. Be5 {[%clk 0:00:12]}  Kh3 {[%clk 0:00:06]} 62. c7 {[%clk 0:00:11]}  g2 {[%clk 0:00:07]} 63. Bd4 {[%clk 0:00:12]}  Kh2 {[%clk 0:00:07]} 64. Kc6 {[%clk 0:00:11]}  Bc8 {[%clk 0:00:04]} 65. Kb6 {[%clk 0:00:08]}  g1=Q {[%clk 0:00:05]} 66. Bxg1+ {[%clk 0:00:08]}  Kxg1 {[%clk 0:00:06]} 67. Ka7 {[%clk 0:00:09]}  a5 {[%clk 0:00:05]} 68. Kb8 {[%clk 0:00:09]}  Be6 {[%clk 0:00:04]} 69. c8=Q {[%clk 0:00:10]}  Bxc8 {[%clk 0:00:05]} 70. Kxc8 {[%clk 0:00:11]}  Kf2 {[%clk 0:00:03]} 71. Kb7 {[%clk 0:00:11]}  Ke3 {[%clk 0:00:03]} 72. Ka6 {[%clk 0:00:12]}  a4 {[%clk 0:00:01]} 73. Ka5 {[%clk 0:00:12]} 1-0


[Site "https://www.chess.com"]

[Event "Titled Tuesday Blitz June 14 Late 2022"]
[White "Oparin, Grigoriy"]
[Black "Tanenbaum, Zachary"]
[WhiteFideId "24125890"]
[BlackFideId "2060850"]
[WhiteElo "2639"]
[BlackElo "2175"]
[Result "1-0"]
[Round "03"]
[TimeControl "180+1"]
[Date "2022.06.14"]
[WhiteClock "0:00:50"]
[BlackClock "0:00:01"]

1. f4 {[%clk 0:03:00]}  d5 {[%clk 0:02:59]} 2. Nf3 {[%clk 0:03:01]}  Nf6 {[%clk 0:03:00]} 3. e3 {[%clk 0:03:01]}  Bf5 {[%clk 0:02:59]} 4. b3 {[%clk 0:03:01]}  e6 {[%clk 0:02:59]} 5. Bb2 {[%clk 0:03:01]}  Bd6 {[%clk 0:02:57]} 6. d3 {[%clk 0:02:59]}  Nbd7 {[%clk 0:02:50]} 7. Nbd2 {[%clk 0:03:00]}  c5 {[%clk 0:02:47]} 8. Qe2 {[%clk 0:02:58]}  Bg6 {[%clk 0:02:43]} 9. g3 {[%clk 0:02:52]}  Qe7 {[%clk 0:02:41]} 10. e4 {[%clk 0:02:49]}  e5 {[%clk 0:02:02]} 11. O-O-O {[%clk 0:02:46]}  Bh5 {[%clk 0:01:54]} 12. exd5 {[%clk 0:02:26]}  exf4 {[%clk 0:01:43]} 13. Qf2 {[%clk 0:02:25]}  Ng4 {[%clk 0:01:37]} 14. Qg1 {[%clk 0:02:26]}  Ne3 {[%clk 0:00:42]} 15. Re1 {[%clk 0:02:25]}  O-O {[%clk 0:00:36]} 16. gxf4 {[%clk 0:02:24]}  f6 {[%clk 0:00:22]} 17. Rxe3 {[%clk 0:02:24]}  Qd8 {[%clk 0:00:21]} 18. Re4 {[%clk 0:02:13]}  Bg6 {[%clk 0:00:19]} 19. Qg3 {[%clk 0:02:00]}  Qc7 {[%clk 0:00:16]} 20. Rg1 {[%clk 0:02:00]}  Nb6 {[%clk 0:00:16]} 21. Kb1 {[%clk 0:01:26]}  Bxe4 {[%clk 0:00:15]} 22. Nxe4 {[%clk 0:01:26]}  Bxf4 {[%clk 0:00:16]} 23. Qh3 {[%clk 0:01:24]}  Kh8 {[%clk 0:00:13]} 24. Qf5 {[%clk 0:01:13]}  Nd7 {[%clk 0:00:07]} 25. Bh3 {[%clk 0:01:09]}  Rad8 {[%clk 0:00:05]} 26. Qh5 {[%clk 0:00:58]}  Bh6 {[%clk 0:00:05]} 27. Bxd7 {[%clk 0:00:55]}  Qxd7 {[%clk 0:00:05]} 28. Nxf6 {[%clk 0:00:55]}  gxf6 {[%clk 0:00:04]} 29. Qxh6 {[%clk 0:00:55]}  Qf7 {[%clk 0:00:04]} 30. Ne5 {[%clk 0:00:50]}  Qe7 {[%clk 0:00:01]} 31. Ng6+ {[%clk 0:00:50]} 1-0


[Site "https://www.chess.com"]

[Event "Titled Tuesday Blitz June 14 Late 2022"]
[White "Papp, Levente"]
[Black "Sadhwani, Raunak"]
[WhiteFideId "751243"]
[BlackFideId "35093487"]
[WhiteElo "2308"]
[BlackElo "2616"]
[Result "0-1"]
[Round "03"]
[TimeControl "180+1"]
[Date "2022.06.14"]
[WhiteClock "0:00:01"]
[BlackClock "0:01:53"]

1. c4 {[%clk 0:03:00]}  Nf6 {[%clk 0:02:54]} 2. Nc3 {[%clk 0:03:00]}  g6 {[%clk 0:02:55]} 3. g3 {[%clk 0:02:59]}  c5 {[%clk 0:02:54]} 4. Bg2 {[%clk 0:02:59]}  Bg7 {[%clk 0:02:55]} 5. e3 {[%clk 0:02:56]}  O-O {[%clk 0:02:54]} 6. Nge2 {[%clk 0:02:56]}  e6 {[%clk 0:02:44]} 7. d4 {[%clk 0:02:54]}  d6 {[%clk 0:02:41]} 8. O-O {[%clk 0:02:50]}  Qe7 {[%clk 0:02:40]} 9. b3 {[%clk 0:02:45]}  Rd8 {[%clk 0:02:40]} 10. Bb2 {[%clk 0:02:39]}  Nc6 {[%clk 0:02:36]} 11. d5 {[%clk 0:02:37]}  exd5 {[%clk 0:02:36]} 12. cxd5 {[%clk 0:02:34]}  Ne5 {[%clk 0:02:33]} 13. Qc2 {[%clk 0:02:21]}  a6 {[%clk 0:02:32]} 14. a4 {[%clk 0:02:21]}  b6 {[%clk 0:02:32]} 15. h3 {[%clk 0:01:56]}  Rb8 {[%clk 0:02:31]} 16. f4 {[%clk 0:01:50]}  Ned7 {[%clk 0:02:30]} 17. e4 {[%clk 0:01:50]}  b5 {[%clk 0:02:30]} 18. axb5 {[%clk 0:01:40]}  axb5 {[%clk 0:02:31]} 19. Ra7 {[%clk 0:01:23]}  b4 {[%clk 0:02:30]} 20. Nb1 {[%clk 0:01:23]}  Rb7 {[%clk 0:02:25]} 21. Ra2 {[%clk 0:01:15]}  Nb6 {[%clk 0:02:21]} 22. Nd2 {[%clk 0:01:12]}  Nfxd5 {[%clk 0:02:19]} 23. Bxg7 {[%clk 0:01:07]}  Kxg7 {[%clk 0:02:20]} 24. Qb2+ {[%clk 0:01:00]}  Kg8 {[%clk 0:02:10]} 25. exd5 {[%clk 0:00:56]}  Qxe2 {[%clk 0:02:11]} 26. Qf6 {[%clk 0:00:40]}  Qe7 {[%clk 0:02:08]} 27. Qxe7 {[%clk 0:00:32]}  Rxe7 {[%clk 0:02:09]} 28. Ne4 {[%clk 0:00:28]}  Bf5 {[%clk 0:02:05]} 29. Ra6 {[%clk 0:00:22]}  Bxe4 {[%clk 0:01:59]} 30. Rxb6 {[%clk 0:00:21]}  Bc2 {[%clk 0:01:58]} 31. Rf3 {[%clk 0:00:14]}  Re1+ {[%clk 0:01:58]} 32. Bf1 {[%clk 0:00:12]}  Rb1 {[%clk 0:01:58]} 33. Kf2 {[%clk 0:00:07]}  Bxb3 {[%clk 0:01:58]} 34. Bb5 {[%clk 0:00:04]}  Bxd5 {[%clk 0:01:57]} 35. Re3 {[%clk 0:00:04]}  Rb2+ {[%clk 0:01:57]} 36. Ke1 {[%clk 0:00:03]}  Ra8 {[%clk 0:01:55]} 37. Rd3 {[%clk 0:00:01]}  Ra1+ {[%clk 0:01:53]} 0-1


[Site "https://www.chess.com"]

[Event "Titled Tuesday Blitz June 14 Late 2022"]
[White "Paravyan, David"]
[Black "Seo, Jung Min"]
[WhiteFideId "4194985"]
[BlackFideId "1734687"]
[WhiteElo "2569"]
[BlackElo "2414"]
[Result "1/2-1/2"]
[Round "03"]
[TimeControl "180+1"]
[Date "2022.06.14"]
[WhiteClock "0:00:09"]
[BlackClock "0:00:07"]

1. e4 {[%clk 0:03:00]}  e5 {[%clk 0:03:00]} 2. Nf3 {[%clk 0:03:00]}  Nf6 {[%clk 0:03:00]} 3. Nc3 {[%clk 0:03:01]}  Nc6 {[%clk 0:03:00]} 4. d4 {[%clk 0:03:01]}  exd4 {[%clk 0:03:00]} 5. Nxd4 {[%clk 0:03:02]}  Bb4 {[%clk 0:03:00]} 6. Nxc6 {[%clk 0:03:03]}  bxc6 {[%clk 0:03:00]} 7. Bd3 {[%clk 0:03:03]}  O-O {[%clk 0:03:00]} 8. O-O {[%clk 0:03:03]}  d5 {[%clk 0:03:00]} 9. exd5 {[%clk 0:03:04]}  cxd5 {[%clk 0:03:00]} 10. h3 {[%clk 0:03:03]}  c6 {[%clk 0:03:00]} 11. Qf3 {[%clk 0:03:01]}  Nd7 {[%clk 0:02:54]} 12. Bf4 {[%clk 0:02:58]}  Re8 {[%clk 0:02:51]} 13. Rfe1 {[%clk 0:02:58]}  Nc5 {[%clk 0:02:41]} 14. Bf1 {[%clk 0:02:52]}  Ne4 {[%clk 0:02:27]} 15. Rad1 {[%clk 0:02:29]}  Bxc3 {[%clk 0:02:18]} 16. bxc3 {[%clk 0:02:28]}  Be6 {[%clk 0:02:12]} 17. c4 {[%clk 0:02:23]}  Qa5 {[%clk 0:02:10]} 18. cxd5 {[%clk 0:02:19]}  cxd5 {[%clk 0:02:05]} 19. c4 {[%clk 0:02:19]}  Qxa2 {[%clk 0:02:02]} 20. cxd5 {[%clk 0:02:17]}  Bxd5 {[%clk 0:02:03]} 21. Re2 {[%clk 0:02:14]}  Qb3 {[%clk 0:02:01]} 22. Rd3 {[%clk 0:01:56]}  Qb7 {[%clk 0:02:01]} 23. Qe3 {[%clk 0:01:13]}  Nf6 {[%clk 0:01:51]} 24. Qd4 {[%clk 0:01:11]}  Rxe2 {[%clk 0:01:37]} 25. Bxe2 {[%clk 0:01:12]}  Be6 {[%clk 0:01:28]} 26. Rg3 {[%clk 0:01:06]}  Ne8 {[%clk 0:01:16]} 27. Be5 {[%clk 0:00:49]}  f6 {[%clk 0:01:12]} 28. Bxf6 {[%clk 0:00:42]}  Nxf6 {[%clk 0:01:12]} 29. Qxf6 {[%clk 0:00:43]}  Qf7 {[%clk 0:01:09]} 30. Qe5 {[%clk 0:00:39]}  Rf8 {[%clk 0:01:05]} 31. Rf3 {[%clk 0:00:38]}  Qe8 {[%clk 0:00:59]} 32. Re3 {[%clk 0:00:30]}  Bf7 {[%clk 0:00:58]} 33. Qc7 {[%clk 0:00:27]}  Qb8 {[%clk 0:00:57]} 34. Re7 {[%clk 0:00:20]}  Qxc7 {[%clk 0:00:47]} 35. Rxc7 {[%clk 0:00:21]}  a5 {[%clk 0:00:46]} 36. Ra7 {[%clk 0:00:21]}  Re8 {[%clk 0:00:40]} 37. Bb5 {[%clk 0:00:21]}  Re1+ {[%clk 0:00:39]} 38. Kh2 {[%clk 0:00:21]}  g6 {[%clk 0:00:39]} 39. Rxa5 {[%clk 0:00:21]}  Re5 {[%clk 0:00:38]} 40. Ra8+ {[%clk 0:00:22]}  Kg7 {[%clk 0:00:39]} 41. Bc6 {[%clk 0:00:22]}  Rc5 {[%clk 0:00:36]} 42. Be4 {[%clk 0:00:21]}  Bd5 {[%clk 0:00:35]} 43. Ra7+ {[%clk 0:00:21]}  Kh6 {[%clk 0:00:35]} 44. Bd3 {[%clk 0:00:21]}  Rc3 {[%clk 0:00:33]} 45. Bb5 {[%clk 0:00:17]}  Rc2 {[%clk 0:00:30]} 46. Kg3 {[%clk 0:00:16]}  Rc3+ {[%clk 0:00:29]} 47. f3 {[%clk 0:00:16]}  Rc5 {[%clk 0:00:30]} 48. Bd3 {[%clk 0:00:15]}  Rc3 {[%clk 0:00:29]} 49. Be2 {[%clk 0:00:16]}  Rc2 {[%clk 0:00:29]} 50. Bf1 {[%clk 0:00:16]}  Rc1 {[%clk 0:00:28]} 51. Kf2 {[%clk 0:00:16]}  Rc2+ {[%clk 0:00:28]} 52. Ke3 {[%clk 0:00:16]}  Rc1 {[%clk 0:00:28]} 53. Bd3 {[%clk 0:00:16]}  Re1+ {[%clk 0:00:24]} 54. Kf2 {[%clk 0:00:15]}  Rd1 {[%clk 0:00:23]} 55. Ke3 {[%clk 0:00:14]}  Rg1 {[%clk 0:00:23]} 56. Ra5 {[%clk 0:00:07]}  Bg8 {[%clk 0:00:20]} 57. Kf2 {[%clk 0:00:07]}  Rd1 {[%clk 0:00:20]} 58. Be4 {[%clk 0:00:08]}  Rd2+ {[%clk 0:00:19]} 59. Kg3 {[%clk 0:00:08]}  Kg7 {[%clk 0:00:19]} 60. h4 {[%clk 0:00:08]}  h5 {[%clk 0:00:18]} 61. Ra7+ {[%clk 0:00:08]}  Bf7 {[%clk 0:00:17]} 62. Rc7 {[%clk 0:00:07]}  Kf6 {[%clk 0:00:16]} 63. Rc6+ {[%clk 0:00:08]}  Kg7 {[%clk 0:00:17]} 64. Rc5 {[%clk 0:00:08]}  Kf6 {[%clk 0:00:16]} 65. f4 {[%clk 0:00:08]}  Rd6 {[%clk 0:00:14]} 66. f5 {[%clk 0:00:08]}  gxf5 {[%clk 0:00:14]} 67. Rxf5+ {[%clk 0:00:09]}  Kg7 {[%clk 0:00:14]} 68. Rg5+ {[%clk 0:00:07]}  Kh6 {[%clk 0:00:14]} 69. Re5 {[%clk 0:00:06]}  Bg6 {[%clk 0:00:14]} 70. Bf3 {[%clk 0:00:06]}  Rf6 {[%clk 0:00:14]} 71. Rc5 {[%clk 0:00:06]}  Rd6 {[%clk 0:00:14]} 72. Kf4 {[%clk 0:00:06]}  Rf6+ {[%clk 0:00:14]} 73. Ke5 {[%clk 0:00:07]}  Rf5+ {[%clk 0:00:14]} 74. Kd4 {[%clk 0:00:07]}  Rxc5 {[%clk 0:00:13]} 75. Kxc5 {[%clk 0:00:08]}  Kg7 {[%clk 0:00:14]} 76. Kd4 {[%clk 0:00:07]}  Kf6 {[%clk 0:00:14]} 77. Kd5 {[%clk 0:00:07]}  Bf7+ {[%clk 0:00:14]} 78. Ke4 {[%clk 0:00:07]}  Bg6+ {[%clk 0:00:14]} 79. Kf4 {[%clk 0:00:08]}  Bf7 {[%clk 0:00:14]} 80. Be4 {[%clk 0:00:09]}  Be8 {[%clk 0:00:14]} 81. Bd5 {[%clk 0:00:09]}  Bg6 {[%clk 0:00:14]} 82. Bc6 {[%clk 0:00:10]}  Bf7 {[%clk 0:00:14]} 83. Bb7 {[%clk 0:00:11]}  Be8 {[%clk 0:00:14]} 84. Be4 {[%clk 0:00:11]}  Bf7 {[%clk 0:00:14]} 85. Bf5 {[%clk 0:00:11]}  Be8 {[%clk 0:00:14]} 86. Bc2 {[%clk 0:00:12]}  Bf7 {[%clk 0:00:14]} 87. Bd3 {[%clk 0:00:13]}  Be8 {[%clk 0:00:14]} 88. Bc4 {[%clk 0:00:13]}  Bg6 {[%clk 0:00:14]} 89. Be2 {[%clk 0:00:14]}  Bf7 {[%clk 0:00:14]} 90. Ke4 {[%clk 0:00:14]}  Bg6+ {[%clk 0:00:14]} 91. Kd5 {[%clk 0:00:14]}  Bf7+ {[%clk 0:00:14]} 92. Kd6 {[%clk 0:00:15]}  Bg6 {[%clk 0:00:14]} 93. Kd7 {[%clk 0:00:15]}  Bf7 {[%clk 0:00:14]} 94. Bf3 {[%clk 0:00:14]}  Bg6 {[%clk 0:00:14]} 95. Kd6 {[%clk 0:00:11]}  Bf7 {[%clk 0:00:14]} 96. g3 {[%clk 0:00:11]}  Bg6 {[%clk 0:00:14]} 97. Bd5 {[%clk 0:00:11]}  Be8 {[%clk 0:00:13]} 98. Be6 {[%clk 0:00:11]}  Bg6 {[%clk 0:00:13]} 99. Bh3 {[%clk 0:00:11]}  Bf7 {[%clk 0:00:13]} 100. Kd7 {[%clk 0:00:11]}  Bg6 {[%clk 0:00:13]} 101. Kd8 {[%clk 0:00:12]}  Bf7 {[%clk 0:00:13]} 102. Bc8 {[%clk 0:00:12]}  Bg6 {[%clk 0:00:13]} 103. Bd7 {[%clk 0:00:13]}  Bf7 {[%clk 0:00:13]} 104. Be8 {[%clk 0:00:10]}  Bxe8 {[%clk 0:00:05]} 105. Kxe8 {[%clk 0:00:11]}  Ke6 {[%clk 0:00:05]} 106. Kf8 {[%clk 0:00:10]}  Kf6 {[%clk 0:00:06]} 107. Kg8 {[%clk 0:00:10]}  Kg6 {[%clk 0:00:06]} 108. Kf8 {[%clk 0:00:11]}  Kf6 {[%clk 0:00:06]} 109. Ke8 {[%clk 0:00:11]}  Ke6 {[%clk 0:00:07]} 110. Kd8 {[%clk 0:00:12]}  Kd6 {[%clk 0:00:06]} 111. Ke8 {[%clk 0:00:09]}  Ke6 {[%clk 0:00:07]} 1/2-1/2


[Site "https://www.chess.com"]

[Event "Titled Tuesday Blitz June 14 Late 2022"]
[White "Petrovic, Aleksa"]
[Black "Jobava, Baadur"]
[WhiteFideId "967629"]
[BlackFideId "13601520"]
[WhiteElo "2117"]
[BlackElo "2617"]
[Result "0-1"]
[Round "03"]
[TimeControl "180+1"]
[Date "2022.06.15"]
[WhiteClock "0:00:01"]
[BlackClock "0:01:17"]

1. d4 {[%clk 0:03:00]}  Nf6 {[%clk 0:02:59]} 2. Nc3 {[%clk 0:02:59]}  d5 {[%clk 0:02:57]} 3. Bf4 {[%clk 0:02:59]}  c5 {[%clk 0:02:57]} 4. e4 {[%clk 0:02:58]}  dxe4 {[%clk 0:02:54]} 5. d5 {[%clk 0:02:54]}  a6 {[%clk 0:02:54]} 6. a4 {[%clk 0:02:47]}  g6 {[%clk 0:02:54]} 7. Qe2 {[%clk 0:02:38]}  Bg7 {[%clk 0:02:52]} 8. O-O-O {[%clk 0:02:36]}  O-O {[%clk 0:02:51]} 9. h4 {[%clk 0:02:13]}  b5 {[%clk 0:02:50]} 10. d6 {[%clk 0:02:04]}  e5 {[%clk 0:02:49]} 11. Bxe5 {[%clk 0:01:57]}  Nc6 {[%clk 0:02:49]} 12. Bxf6 {[%clk 0:01:52]}  Qxf6 {[%clk 0:02:50]} 13. Qxe4 {[%clk 0:01:38]}  b4 {[%clk 0:02:44]} 14. Qxc6 {[%clk 0:01:30]}  Be6 {[%clk 0:02:37]} 15. Qf3 {[%clk 0:00:57]}  bxc3 {[%clk 0:02:37]} 16. Qxf6 {[%clk 0:00:54]}  Bxf6 {[%clk 0:02:37]} 17. bxc3 {[%clk 0:00:49]}  Rfd8 {[%clk 0:02:37]} 18. Nf3 {[%clk 0:00:46]}  Bxc3 {[%clk 0:02:34]} 19. Ng5 {[%clk 0:00:44]}  Ba2 {[%clk 0:02:24]} 20. Rd3 {[%clk 0:00:38]}  Be5 {[%clk 0:02:24]} 21. Ra3 {[%clk 0:00:31]}  Bd5 {[%clk 0:02:18]} 22. Be2 {[%clk 0:00:24]}  Rab8 {[%clk 0:02:16]} 23. c3 {[%clk 0:00:17]}  Rxd6 {[%clk 0:02:07]} 24. Rd1 {[%clk 0:00:16]}  h6 {[%clk 0:02:03]} 25. Bf3 {[%clk 0:00:10]}  Bb3 {[%clk 0:01:38]} 26. Rxd6 {[%clk 0:00:08]}  Bxd6 {[%clk 0:01:39]} 27. Ne4 {[%clk 0:00:09]}  Bf4+ {[%clk 0:01:39]} 28. Nd2 {[%clk 0:00:05]}  h5 {[%clk 0:01:34]} 29. g3 {[%clk 0:00:05]}  Bh6 {[%clk 0:01:34]} 30. Be2 {[%clk 0:00:04]}  Bd5 {[%clk 0:01:33]} 31. f4 {[%clk 0:00:04]}  Re8 {[%clk 0:01:26]} 32. Kd1 {[%clk 0:00:05]}  a5 {[%clk 0:01:23]} 33. Bf3 {[%clk 0:00:04]}  Be6 {[%clk 0:01:23]} 34. c4 {[%clk 0:00:04]}  Bg7 {[%clk 0:01:23]} 35. Re3 {[%clk 0:00:03]}  Rd8 {[%clk 0:01:22]} 36. Kc2 {[%clk 0:00:03]}  Bd4 {[%clk 0:01:18]} 37. Rd3 {[%clk 0:00:03]}  Rb8 {[%clk 0:01:17]} 38. Nb3 {[%clk 0:00:02]}  Bxc4 {[%clk 0:01:16]} 39. Rxd4 {[%clk 0:00:01]}  Bxb3+ {[%clk 0:01:16]} 40. Kc3 {[%clk 0:00:01]}  cxd4+ {[%clk 0:01:17]} 0-1


[Site "https://www.chess.com"]